[Event "CCCSA GM Norm A 2019"]
[Site "Charlotte"]
[Date "2019.06.09"]
[Round "8.2"]
[White "Zierk, Steven"]
[Black "Hong, Andrew"]
[Result "0-1"]
[ECO "E04"]
[WhiteElo "2501"]
[BlackElo "2414"]
[Annotator "ChessBase"]
[PlyCount "100"]
[EventDate "2019.06.05"]
[EventType "tourn"]
[EventCountry "USA"]
[SourceTitle "playchess.com"]
[Source "ChessBase"]
[SourceQuality "1"]
[TimeControl "5400+30"]

1. d4 {[%emt 0:01:08]} d5 {[%emt 0:00:04]} 2. c4 {[%emt 0:00:33]} e6 {[%emt 0:00:27]} 3. Nf3 {[%emt 0:00:51]} Nf6 {[%emt 0:00:30]} 4. g3 {[%emt 0:00:22]} dxc4 {[%emt 0:00:55]} 5. Bg2 {[%emt 0:01:39]} Bb4+ {[%emt 0:00:28]} 6. Bd2 {[%emt 0:00:23]} a5 {[%emt 0:00:23]} 7. a3 {[%emt 0:05:01]} Bxd2+ {[%emt 0:07:44]} 8. Nbxd2 {[%emt 0:00:24]} b5 {[%emt 0:01:29]} 9. a4 {[%emt 0:05:37]} c6 {[%emt 0:01:23]} 10. O-O {[%emt 0:04:53]} O-O {[%emt 0:02:52]} 11. Qc2 {[%emt 0:04:39]} Ba6 {[%emt 0:10:15]} 12. Rfd1 {[%emt 0:05:28]} Nbd7 {[%emt 0:16:01]} 13. Ne5 {[%emt 0:10:09]} Nxe5 {[%emt 0:08:19]} 14. dxe5 {[%emt 0:00:04]} Nd5 {[%emt 0:01:18]} 15. b3 {[%emt 0:02:15]} Qc7 {[%emt 0:08:48]} 16. bxc4 {[%emt 0:03:02]} bxc4 {[%emt 0:01:35]} 17. Nxc4 {[%emt 0:09:52]} Nb4 {[%emt 0:01:56]} 18. Qe4 {[%emt 0:00:25]} Bxc4 {[%emt 0:00:39]} 19. Qxc4 {[%emt 0:00:01]} Qxe5 {[%emt 0:00:26]} 20. Rac1 {[%emt 0:00:50]} Rac8 {[%emt 0:07:00]} 21. Qc5 {[%emt 0:08:25]} Qc7 {[%emt 0:02:48]} 22. Rd4 {[%emt 0:06:28]} Rfd8 {[%emt 0:04:25]} 23. Rdc4 {[%emt 0:00:45]} Rd6 {[%emt 0:02:11]} 24. Qh5 {[%emt 0:09:31]} Rcd8 {[%emt 0:03:41]} 25. Bf3 {[%emt 0:01:41]} Rd1+ {[%emt 0:07:17]} 26. Rxd1 {[%emt 0:00:13]} Rxd1+ {[%emt 0:00:01]} 27. Kg2 {[%emt 0:00:06]} h6 {[%emt 0:01:51]} 28. Rc5 {[%emt 0:01:38]} Qd8 {[%emt 0:02:06]} 29. Qe5 {[%emt 0:05:13]} Re1 {[%emt 0:02:11]} 30. Qc3 {[%emt 0:09:35]} Qd1 {[%emt 0:02:10]} 31. Rxa5 {[%emt 0:00:33]} Rg1+ {[%emt 0:01:45]} 32. Kh3 {[%emt 0:00:01]} Qf1+ {[%emt 0:00:59]} 33. Kg4 {[%emt 0:00:09]} Nd5 {[%emt 0:01:32]} 34. Bxd5 {[%emt 0:02:14]} cxd5 {[%emt 0:01:31]} 35. Qe3 {[%emt 0:02:05]} Rg2 {[%emt 0:00:00]} 36. Ra8+ {[%emt 0:01:01]} Kh7 {[%emt 0:00:00]} 37. Qd3+ {[%emt 0:00:35]} f5+ {[%emt 0:00:09]} 38. Kf4 {[%emt 0:00:00]} Qa1 {[%emt 0:01:12]} 39. Qe3 {[%emt 0:00:47]} Qf6 {[%emt 0:00:35]} 40. Kf3 {[%emt 0:00:46]} Rxh2 {[%emt 0:00:04]} 41. Re8 {[%emt 0:00:14]} d4 {[%emt 0:00:42]} 42. Qf4 {[%emt 0:00:46]} Qg6 {[%emt 0:00:40]} 43. Re7 {[%emt 0:00:30]} Qh5+ {[%emt 0:00:35]} 44. g4 {[%emt 0:00:01]} Qh4 {[%emt 0:00:22]} 45. Rxg7+ {[%emt 0:00:06]} Kxg7 {[%emt 0:00:05]} 46. Qe5+ {[%emt 0:00:02]} Kf7 {[%emt 0:00:54]} 47. Qc7+ {[%emt 0:00:01]} Kg6 {[%emt 0:00:21]} 48. gxf5+ {[%emt 0:00:01]} exf5 {[%emt 0:00:27]} 49. Qc6+ {[%emt 0:00:09]} Kg5 {[%emt 0:00:37]} 50. Qc1+ {[%emt 0:00:01]} Kh5 {[%emt 0:00:08]} 0-1

[Event "CCCSA GM Norm A 2019"]
[Site "Charlotte"]
[Date "2019.06.09"]
[Round "8.3"]
[White "Ostrovskiy, Aleksandr"]
[Black "Wang, Tianqi"]
[Result "1/2-1/2"]
[ECO "C67"]
[WhiteElo "2437"]
[BlackElo "2333"]
[Annotator "NA"]
[PlyCount "128"]
[EventDate "2019.06.05"]
[EventType "tourn"]
[EventCountry "USA"]
[SourceTitle "playchess.com"]
[Source "ChessBase"]
[SourceQuality "1"]
[TimeControl "5400+30"]

1. e4 {[%emt 0:09:04]} e5 {[%emt 0:00:00]} 2. Nf3 {[%emt 0:00:38]} Nc6 {[%emt 0:00:00]} 3. Bb5 {[%emt 0:00:47]} Nf6 {[%emt 0:00:00]} 4. O-O {[%emt 0:00:50]} Nxe4 {[%emt 0:00:03]} 5. Re1 {[%emt 0:01:16]} Nd6 {[%emt 0:00:08]} 6. Nxe5 {[%emt 0:00:08]} Be7 {[%emt 0:00:08]} 7. Bf1 {[%emt 0:00:20]} Nxe5 {[%emt 0:00:05]} 8. Rxe5 {[%emt 0:00:06]} O-O {[%emt 0:00:02]} 9. d4 {[%emt 0:00:10]} Ne8 {[%emt 0:00:25]} 10. d5 {[%emt 0:05:40]} d6 {[%emt 0:00:38]} 11. Re1 {[%emt 0:01:16]} Nf6 {[%emt 0:00:32]} 12. c4 {[%emt 0:12:30]} h6 {[%emt 0:01:25]} 13. Nc3 {[%emt 0:01:18]} Re8 {[%emt 0:00:21]} 14. Qf3 {[%emt 0:04:28]} Bd7 {[%emt 0:06:37]} 15. Bf4 {[%emt 0:04:39]} Bf8 {[%emt 0:00:54]} 16. Rxe8 {[%emt 0:09:05]} Bxe8 {[%emt 0:01:11]} 17. Re1 {[%emt 0:03:18]} Bd7 {[%emt 0:01:13]} 18. h3 {[%emt 0:02:18]} Nh7 {[%emt 0:05:52]} 19. Bd3 {[%emt 0:12:48]} g6 {[%emt 0:10:30]} 20. b3 {[%emt 0:07:58]} Bg7 {[%emt 0:01:35]} 21. Bd2 {[%emt 0:00:23]} Qf6 {[%emt 0:03:52]} 22. Qxf6 {[%emt 0:05:46]} Nxf6 {[%emt 0:00:28]} 23. g4 {[%emt 0:00:28]} a6 {[%emt 0:01:43]} 24. a4 {[%emt 0:02:03]} Re8 {[%emt 0:00:18]} 25. Rxe8+ {[%emt 0:04:48]} Nxe8 {[%emt 0:00:59]} 26. a5 {[%emt 0:01:01]} c5 {[%emt 0:04:56]} 27. dxc6 {[%emt 0:03:22]} Bxc6 {[%emt 0:00:26]} 28. b4 {[%emt 0:00:52]} Nc7 {[%emt 0:03:48]} 29. b5 {[%emt 0:01:51]} Bd7 {[%emt 0:00:25]} 30. b6 {[%emt 0:00:47]} Ne6 {[%emt 0:00:37]} 31. Ne4 {[%emt 0:03:43]} Nc5 {[%emt 0:14:39]} 32. Nxc5 {[%emt 0:00:09]} dxc5 {[%emt 0:00:03]} 33. Be4 {[%emt 0:00:07]} Bc8 {[%emt 0:00:04]} 34. Kg2 {[%emt 0:01:57]} Bf8 {[%emt 0:00:51]} 35. f4 {[%emt 0:00:47]} f5 {[%emt 0:01:25]} 36. Bd5+ {[%emt 0:00:06]} Kh7 {[%emt 0:00:07]} 37. Kg3 {[%emt 0:01:03]} Be7 {[%emt 0:00:16]} 38. Be3 {[%emt 0:00:38]} Kg7 {[%emt 0:00:12]} 39. Bc1 {[%emt 0:00:26]} h5 {[%emt 0:03:00]} 40. gxh5 {[%emt 0:00:19]} gxh5 {[%emt 0:00:05]} 41. Bb2+ {[%emt 0:00:27]} Kg6 {[%emt 0:00:07]} 42. h4 {[%emt 0:00:48]} Bf8 {[%emt 0:00:49]} 43. Be5 {[%emt 0:00:09]} Be7 {[%emt 0:00:07]} 44. Bf3 {[%emt 0:00:15]} Bf8 {[%emt 0:00:07]} 45. Bb8 {[%emt 0:00:42]} Be7 {[%emt 0:00:08]} 46. Bc7 {[%emt 0:00:05]} Bf8 {[%emt 0:00:15]} 47. Bd1 {[%emt 0:01:08]} Bd7 {[%emt 0:00:38]} 48. Bf3 {[%emt 0:00:11]} Bc8 {[%emt 0:00:04]} 49. Bh1 {[%emt 0:00:20]} Be7 {[%emt 0:00:16]} 50. Bg2 {[%emt 0:00:34]} Bf8 {[%emt 0:00:39]} 51. Bd8 {[%emt 0:00:26]} Bd6 {[%emt 0:00:12]} 52. Bf3 {[%emt 0:00:45]} Bf8 {[%emt 0:00:05]} 53. Bg5 {[%emt 0:00:33]} Bd6 {[%emt 0:00:10]} 54. Bd5 {[%emt 0:00:39]} Bf8 {[%emt 0:00:10]} 55. Kg2 {[%emt 0:00:25]} Bd6 {[%emt 0:00:05]} 56. Kf2 {[%emt 0:00:19]} Bf8 {[%emt 0:00:16]} 57. Bf3 {[%emt 0:00:36]} Bd6 {[%emt 0:00:07]} 58. Bd1 {[%emt 0:00:44]} Bd7 {[%emt 0:00:07]} 59. Bf3 {[%emt 0:00:14]} Bc8 {[%emt 0:00:05]} 60. Ke3 {[%emt 0:00:26]} Bf8 {[%emt 0:00:05]} 61. Bd5 {[%emt 0:00:33]} Bd6 {[%emt 0:00:08]} 62. Kf3 {[%emt 0:00:31]} Bf8 {[%emt 0:00:03]} 63. Bd8 {[%emt 0:00:27]} Bd6 {[%emt 0:00:05]} 64. Kg3 {[%emt 0:00:38]} Bf8 {[%emt 0:00:04]} 1/2-1/2

[Event "CCCSA GM Norm A 2019"]
[Site "Charlotte"]
[Date "2019.06.09"]
[Round "8.4"]
[White "Korley, Kassa"]
[Black "Grigoryan, Karen H."]
[Result "1-0"]
[ECO "A48"]
[WhiteElo "2430"]
[BlackElo "2547"]
[Annotator "ChessBase"]
[PlyCount "117"]
[EventDate "2019.06.05"]
[EventType "tourn"]
[EventCountry "USA"]
[SourceTitle "playchess.com"]
[Source "ChessBase"]
[SourceQuality "1"]
[TimeControl "5400+30"]

1. d4 {[%emt 0:03:08]} Nf6 {[%emt 0:00:07]} 2. Bf4 {[%emt 0:00:05]} d6 {[%emt 0:00:15]} 3. e3 {[%emt 0:00:17]} g6 {[%emt 0:00:06]} 4. c3 {[%emt 0:01:11]} Bg7 {[%emt 0:00:05]} 5. Be2 {[%emt 0:00:23]} O-O {[%emt 0:00:07]} 6. Nf3 {[%emt 0:00:03]} b6 {[%emt 0:00:46]} 7. h3 {[%emt 0:00:30]} Bb7 {[%emt 0:00:05]} 8. Nbd2 {[%emt 0:00:17]} Nbd7 {[%emt 0:00:11]} 9. O-O {[%emt 0:00:09]} Re8 {[%emt 0:00:25]} 10. a4 {[%emt 0:00:24]} e5 {[%emt 0:00:07]} 11. Bh2 {[%emt 0:00:14]} a6 {[%emt 0:01:09]} 12. Qb3 {[%emt 0:01:07]} Ne4 {[%emt 0:01:40]} 13. Nxe4 {[%emt 0:00:30]} Bxe4 {[%emt 0:00:05]} 14. Nd2 {[%emt 0:06:05]} Bb7 {[%emt 0:00:14]} 15. Bf3 {[%emt 0:00:11]} e4 {[%emt 0:01:21]} 16. Be2 {[%emt 0:00:05]} d5 {[%emt 0:00:23]} 17. Rfc1 {[%emt 0:08:30]} c5 {[%emt 0:00:41]} 18. Qd1 {[%emt 0:00:34]} c4 {[%emt 0:00:42]} 19. b3 {[%emt 0:00:24]} b5 {[%emt 0:00:06]} 20. axb5 {[%emt 0:03:06]} axb5 {[%emt 0:00:07]} 21. Rxa8 {[%emt 0:00:07]} Bxa8 {[%emt 0:00:11]} 22. Ra1 {[%emt 0:00:22]} Qb6 {[%emt 0:00:57]} 23. bxc4 {[%emt 0:05:24]} dxc4 {[%emt 0:01:23]} 24. Qb1 {[%emt 0:01:01]} Bd5 {[%emt 0:00:41]} 25. Ra2 {[%emt 0:01:51]} Bf8 {[%emt 0:02:13]} 26. Rb2 {[%emt 0:01:37]} b4 {[%emt 0:00:18]} 27. Nxc4 {[%emt 0:04:28]} Qc6 {[%emt 0:00:44]} 28. cxb4 {[%emt 0:09:16]} Bxc4 {[%emt 0:00:12]} 29. b5 {[%emt 0:00:03]} Qd5 {[%emt 0:00:31]} 30. Bxc4 {[%emt 0:00:06]} Qxc4 {[%emt 0:00:04]} 31. b6 {[%emt 0:00:04]} Qe6 {[%emt 0:05:30]} 32. b7 {[%emt 0:01:56]} Bd6 {[%emt 0:00:30]} 33. Bxd6 {[%emt 0:03:29]} Qxd6 {[%emt 0:04:45]} 34. Rc2 {[%emt 0:00:22]} Nb8 {[%emt 0:14:14]} 35. Rc8 {[%emt 0:04:03]} Qd7 {[%emt 0:05:27]} 36. Qc2 {[%emt 0:05:15]} Kf8 {[%emt 0:01:48]} 37. Qc5+ {[%emt 0:06:44]} Qe7 {[%emt 0:01:40]} 38. Rc7 {[%emt 0:07:18]} Qxc5 {[%emt 0:00:23]} 39. dxc5 {[%emt 0:00:05]} Rd8 {[%emt 0:02:33]} 40. c6 {[%emt 0:01:51]} Ke8 {[%emt 0:00:27]} 41. g4 {[%emt 0:06:39]} Nxc6 {[%emt 0:05:11]} 42. Rxc6 {[%emt 0:00:04]} Kd7 {[%emt 0:00:06]} 43. Rf6 {[%emt 0:00:22]} Ke7 {[%emt 0:00:09]} 44. Rb6 {[%emt 0:02:15]} Rb8 {[%emt 0:00:06]} 45. g5 {[%emt 0:00:25]} Kd7 {[%emt 0:00:23]} 46. Kg2 {[%emt 0:00:29]} Kc7 {[%emt 0:53:52]} 47. Rb4 {[%emt 0:00:36]} Rxb7 {[%emt 0:00:00]} 48. Rxb7+ {[%emt 0:00:08]} Kxb7 {[%emt 0:00:00]} 49. Kg3 {[%emt 0:00:03]} Kc6 {[%emt 0:00:00]} 50. Kf4 {[%emt 0:00:05]} Kd5 {[%emt 0:00:00]} 51. h4 {[%emt 0:00:04]} f5 {[%emt 0:00:00]} 52. gxf6 {[%emt 0:00:35]} Ke6 {[%emt 0:00:00]} 53. Kxe4 {[%emt 0:00:52]} Kxf6 {[%emt 0:00:00]} 54. Kf4 {[%emt 0:02:01]} h6 {[%emt 0:00:00]} 55. Kg4 {[%emt 0:00:51]} g5 {[%emt 0:00:00]} 56. hxg5+ {[%emt 0:00:36]} hxg5 {[%emt 0:00:00]} 57. e4 {[%emt 0:00:14]} Ke5 {[%emt 0:00:00]} 58. f3 {[%emt 0:00:08]} Kf6 {[%emt 0:00:00]} 59. Kh5 {[%emt 0:00:02]} 1-0

[Event "CCCSA GM Norm A 2019"]
[Site "Charlotte"]
[Date "2019.06.09"]
[Round "8.5"]
[White "Yoo, Christopher Woojin"]
[Black "Jacobson, Brandon"]
[Result "1/2-1/2"]
[ECO "B09"]
[WhiteElo "2430"]
[BlackElo "2486"]
[Annotator "ChessBase"]
[PlyCount "78"]
[EventDate "2019.06.05"]
[EventType "tourn"]
[EventCountry "USA"]
[SourceTitle "playchess.com"]
[Source "ChessBase"]
[SourceQuality "1"]
[TimeControl "5400+30"]

1. e4 {[%emt 0:03:36]} g6 {[%emt 0:00:43]} 2. d4 {[%emt 0:00:10]} Bg7 {[%emt 0:00:11]} 3. Nc3 {[%emt 0:00:22]} d6 {[%emt 0:00:06]} 4. f4 {[%emt 0:05:34]} Nf6 {[%emt 0:00:11]} 5. Nf3 {[%emt 0:00:08]} O-O {[%emt 0:00:05]} 6. Bd3 {[%emt 0:01:13]} Nc6 {[%emt 0:00:04]} 7. Be2 {[%emt 0:01:37]} e5 {[%emt 0:05:24]} 8. dxe5 {[%emt 0:03:06]} dxe5 {[%emt 0:00:10]} 9. Qxd8 {[%emt 0:02:10]} Rxd8 {[%emt 0:09:33]} 10. fxe5 {[%emt 0:01:57]} Ng4 {[%emt 0:00:15]} 11. Nd5 {[%emt 0:14:49]} Rd7 {[%emt 0:01:55]} 12. Bg5 {[%emt 0:00:34]} h6 {[%emt 0:08:59]} 13. Bh4 {[%emt 0:17:35]} Ncxe5 {[%emt 0:12:34]} 14. Nxe5 {[%emt 0:04:24]} Nxe5 {[%emt 0:00:02]} 15. O-O {[%emt 0:01:44]} Kh8 {[%emt 0:06:11]} 16. Bg3 {[%emt 0:21:58]} c6 {[%emt 0:09:51]} 17. Nf6 {[%emt 0:03:08]} Rd2 {[%emt 0:01:10]} 18. Rae1 {[%emt 0:03:46]} Nd7 {[%emt 0:09:56]} 19. Ne8 {[%emt 0:04:48]} Bd4+ {[%emt 0:15:25]} 20. Kh1 {[%emt 0:00:11]} f6 {[%emt 0:00:03]} 21. c3 {[%emt 0:03:47]} Be5 {[%emt 0:00:52]} 22. Bxe5 {[%emt 0:00:33]} Nxe5 {[%emt 0:10:04]} 23. Rxf6 {[%emt 0:00:34]} Kg8 {[%emt 0:00:04]} 24. Rd6 {[%emt 0:02:44]} Rxd6 {[%emt 0:01:25]} 25. Nxd6 {[%emt 0:00:08]} b5 {[%emt 0:00:02]} 26. Nxc8 {[%emt 0:01:47]} Rxc8 {[%emt 0:00:01]} 27. Rd1 {[%emt 0:00:12]} Kf7 {[%emt 0:00:20]} 28. Kg1 {[%emt 0:00:05]} Ke7 {[%emt 0:00:23]} 29. Kf2 {[%emt 0:00:11]} Rd8 {[%emt 0:03:35]} 30. Rd4 {[%emt 0:01:00]} Rb8 {[%emt 0:01:41]} 31. Ke3 {[%emt 0:00:42]} a5 {[%emt 0:00:01]} 32. Kf4 {[%emt 0:00:54]} Ke6 {[%emt 0:00:57]} 33. h4 {[%emt 0:00:30]} a4 {[%emt 0:01:27]} 34. h5 {[%emt 0:00:29]} gxh5 {[%emt 0:00:56]} 35. Rd1 {[%emt 0:00:31]} Rg8 {[%emt 0:00:13]} 36. g3 {[%emt 0:00:22]} Rf8+ {[%emt 0:02:08]} 37. Ke3 {[%emt 0:00:04]} Rg8 {[%emt 0:00:38]} 38. Kf4 {[%emt 0:00:23]} Rf8+ {[%emt 0:00:46]} 39. Ke3 {[%emt 0:00:06]} Rg8 {[%emt 0:00:34]} 1/2-1/2